Cogmind - Beta 16 @@@ ROGUE MODE // 2025.12.19 @ 03:12:48 Player: War__Prophet Result: Destroyed by G-34 Mercenary with Small Laser Performance ------------- Evolutions (0) 0 Regions Visited (1) 200 Robots Destroyed (19) 95 Value Destroyed (550) 550 Prototype IDs (0) 0 Alien Tech Used (0) 0 Bonus (0) 0 TOTAL SCORE: 845 Bonus ------- None Cogmind --------- Core Integrity 0/250 Matter 150/300 Energy 98/100 System Corruption 3% Temperature Cool (6) Movement Core (150) Ox2 Location -10/Materials Parts ------- > --- POWER (1) -------- (None) > --- PROPULSION (2) --- (None) > --- UTILITY (2) ------ Small Storage Unit > --- WEAPON (2) ------- Light Assault Rifle Light Assault Rifle > --- INVENTORY (8) ---- Ion Engine Light Ion Engine Light Ion Engine Light Ion Engine Light Nuclear Core Wheel Assault Rifle Peak State ------------ > --- POWER ------------ Light Ion Engine > --- PROPULSION ------- Wheel Wheel > --- UTILITY ---------- Small Storage Unit Salvage Targeting Computer > --- WEAPON ----------- EM Pulse Gun Assault Rifle > --- INVENTORY -------- Light Ion Engine [Rating: 8] Favorites ----------- Power Ion Engine Engine Ion Engine Power Core Light Nuclear Core Propulsion Aluminum Leg Leg Aluminum Leg Wheel Wheel Utility Small Storage Unit Storage Small Storage Unit Processor Salvage Targeting Computer Weapon Assault Rifle Energy Gun EM Pulse Gun Ballistic Gun Assault Rifle Ballistic Cannon Light Cannon Build | -11 -10 ------- Run | Yrd Mat Slots Evolved . | . . Power . | . . Propulsion . | . . Utility . | . . Weapon . | . . Parts Attached 16 | 6 10 Power 5 | 1 4 Engine 4 | 1 3 Core 1 | . 1 Reactor . | . . Propulsion 4 | 2 2 Treads . | . . Leg 2 | . 2 Wheel 2 | 2 . Hover . | . . Flight . | . . Utility 2 | 1 1 Device . | . . Storage 1 | 1 . Processor 1 | . 1 Hackware . | . . Protection . | . . Artifact . | . . Weapon 5 | 2 3 Energy Gun 1 | 1 . Energy Cannon . | . . Ballistic Gun 3 | 1 2 Ballistic Cannon 1 | . 1 Launcher . | . . Special Weapon . | . . Impact Weapon . | . . Slashing Weapon . | . . Piercing Weapon . | . . Special Melee Weapon . | . . Unidentified Prototypes . | . . Parts Lost 5 | . 5 Power 1 | . 1 Propulsion 3 | . 3 Utility . | . . Weapon 1 | . 1 Highest Loss Streak 2 | . 2 To Critical Strikes . | . . Average Backups 3 | . 4 Power 2 | . 2 Propulsion . | . . Utility . | . . Weapon . | . . Tool/Special . | . . Unused Backups 2 | . 2 Power 2 | . 2 Propulsion . | . . Utility . | . . Weapon . | . . Tool/Special . | . . Average Slot Usage (%) 77 | . 77 Engine 10 | . 10 Core 2 | . 2 Leg 11 | . 11 Wheel 10 | . 10 Storage 14 | . 14 Energy Gun 7 | . 7 Ballistic Gun 14 | . 14 Ballistic Cannon 4 | . 4 Peak Build Rating 8 | 6 8 Average Rating 5 | 4 5 On Entrance 3 | . 6 Avg Prop Armor Cover (%) . | . . Naked Turns . | . . Heaviest Build 15 | 12 15 Greatest Support 20 | 20 20 Greatest Overweight (x) 2 | . 2 Average Overweight (x) . | . . Largest Inventory Capacity 8 | 8 8 Average Capacity 7 | 6 8 Most Carried 7 | 2 7 Average Carried 3 | . 4 Final Capacity 8 | 8 8 Final Carried 7 | 1 7 Class Distribution -------------------- 95% | Mutant 4% | Scavenger-Mutant Dominant Class ---------------- Mutant | -10/Materials Resources | -11 -10 ----------- Run | Yrd Mat Matter Collected 592 | 214 378 Remotely . | . . Salvage Created 557 | . 557 Parts 33 | . 33 Haulers Intercepted . | . . Recyclers Shooed . | . . Parts Field Recycled . | . . Retrieved Matter . | . . Parts Self-Destructed . | . . Prevented . | . . Parts Restored . | . . Kills | -11 -10 ------- Run | Yrd Mat Combat Hostiles Destroyed 15 | . 15 Guns 8 | . 8 Cannons 7 | . 7 Classes Destroyed 5 | . 5 Worker 1 | . 1 Operator 1 | . 1 Watcher 2 | . 2 Swarmer 2 | . 2 Grunt 13 | . 13 Best Kill Streak 6 | . 6 Combat Bots Only 4 | . 4 Max Kills in Single Turn 2 | . 2 Gunslinging 1 | . 1 Exploded . | . . Melee . | . . Uniques/NPCs Destroyed . | . . Combat | -11 -10 -------- Run | Yrd Mat Hostile Shots Fired 102 | . 102 Missed 25 | . 25 Hits 77 | . 77 Projectile 77 | . 77 Critical Strikes 2 | . 2 Damage Taken 1022 | . 1022 Core 254 | . 254 Absorbed by Shields . | . . Core Remaining (%) 100 | 100 . Volleys Fired 76 | . 76 Largest 2 | . 2 Hottest 60 | . 60 Shots Fired 141 | . 141 Gun 103 | . 103 Cannon 38 | . 38 Launcher . | . . Special . | . . Kinetic 122 | . 122 Thermal . | . . Explosive . | . . Electromagnetic 19 | . 19 Robot Hit Streak 8 | . 8 Robot Miss Streak 3 | . 3 Penetration Max . | . . Secondary Targets 1 | . 1 Max Gunslinging Chain 1 | . 1 Shots Hit Robots 98 | . 98 Core Hits 29 | . 29 Critical Kills . | . . Critical Parts Destroyed . | . . Critical Strikes 4 | . 4 Blast 4 | . 4 Melee Attacks . | . . Impact . | . . Slashing . | . . Piercing . | . . Sneak Attacks . | . . Combat Hostiles . | . . Follow-up Attacks . | . . Damage Inflicted 1377 | . 1377 Guns 862 | . 862 Cannons 500 | . 500 Explosions . | . . Melee . | . . Ramming 15 | . 15 Kinetic 1182 | . 1182 Thermal . | . . Explosive . | . . Electromagnetic 180 | . 180 Impact . | . . Slashing . | . . Piercing . | . . Highest Corruption 3 | . 3 Average Corruption 2 | . 2 Corruption Purged . | . . Corruption Blocked . | . . Effects 10 | . 10 Message Errors 1 | . 1 Matter Fused 5 | . 5 Energy Discharges 1 | . 1 Parts Fused 1 | . 1 Data Loss (minor) 2 | . 2 Overload Shots . | . . Overflow Damage 4 | . 4 Projectiles 4 | . 4 Explosions . | . . Melee . | . . Knockbacks 6 | . 6 Impact . | . . Kinetic 6 | . 6 Secondary . | . . Self-Inflicted Damage 7 | . 7 Shots . | . . Rammed 2 | . 2 Targets Rammed 3 | . 3 Kicked 1 | . 1 Crushed . | . . Highest Temperature 81 | . 81 Average Temperature 18 | . 18 Received Heat Transfer 483 | . 483 Siege Activations . | . . Martial Activations . | . . Shielding Activations . | . . Robots Disrupted . | . . Combat Hostiles . | . . Robots Corrupted . | . . Combat Hostiles . | . . Parts Fried 2 | . 2 Impact Corruptions . | . . Robots Melted . | . . Combat Hostiles . | . . Parts Melted . | . . Heat Transferred . | . . Parts Sabotaged . | . . Parts Stolen . | . . Parts Stripped . | . . Power Chain Reactions . | . . Alert | -11 -10 ------- Run | Yrd Mat Maximum Alert Level . | . . Low Security (%) 100 | 100 100 Level 1 . | . . Level 2 . | . . Level 3 . | . . Level 4 . | . . Level 5 . | . . High Security . | . . Max Security . | . . Peak Influence 109 | . 109 Initial . | . . Average 36 | . 38 Influence Increases 413 | . 413 Destroy 0b10 Robot/C 300 | . 300 Destroy 0b10 Robot/NC 20 | . 20 Destroy Leader 54 | . 54 Successful Hack 8 | . 8 Destroy Structure 1 | . 1 Lose Combat Pursuer 30 | . 30 Influence Decreases 412 | . 412 Time Decay 362 | . 362 Lost Part 50 | . 50 Squads Dispatched 4 | . 4 Investigation 3 | . 3 Extermination . | . . Reinforcement 1 | . 1 Assault . | . . Garrison . | . . Intercept . | . . Searches Triggered . | . . Construction Impeded . | . . Haulers Reinforced . | . . Active Scanning Responses . | . . Cargo Convoy Interrupts . | . . Stealth | -11 -10 --------- Run | Yrd Mat Distress Signals 3 | . 3 Communications Jammed . | . . Distress Signals . | . . Times Spotted 24 | . 24 Peak Tracking Total 3 | . 3 Tactical Retreats 2 | . 2 Traps | -11 -10 ------- Run | Yrd Mat Traps Triggered 5 | . 5 Indirectly . | . . Trap Hack Attempts . | . . Triggered . | . . Disarmed . | . . Reprogrammed . | . . Reused . | . . Traps Extracted . | . . Installed . | . . Triggered . | . . Machines | -11 -10 ---------- Run | Yrd Mat Machines Disabled . | . . Max in Single Turn . | . . Machines Repaired . | . . Machines Dismantled . | . . Machines Sabotaged . | . . Overloaded Fab Kills . | . . Hacking | -11 -10 --------- Run | Yrd Mat Machines Accessed 4 | . 4 Terminals 4 | . 4 Fabricators . | . . Repair Stations . | . . Recycling Units . | . . Scanalyzers . | . . Garrison Access . | . . Total Hacks 7 | . 7 Successful 4 | . 4 Failed 3 | . 3 Catastrophic 1 | . 1 Database Lockouts . | . . Manual 7 | . 7 Terminals 7 | . 7 Fabricators . | . . Repair Stations . | . . Recycling Units . | . . Scanalyzers . | . . Garrison Access . | . . Terminal Hacks . | . . Fabricator Hacks . | . . Repair Station Hacks . | . . Recycling Unit Hacks . | . . Scanalyzer . | . . Garrison Access Hacks . | . . Unauthorized Hacks 4 | . 4 Terminals 4 | . 4 Skim 4 | . 4 Fabricators . | . . Repair Stations . | . . Recycling Units . | . . Scanalyzers . | . . Garrison Access . | . . Data Cores Recovered . | . . Used . | . . Hacking Detections 1 | . 1 Full Trace Events . | . . Feedback Events . | . . Feedback Blocked . | . . Robot Schematics Acquired . | . . Robots Built . | . . Authchips . | . . Time . | . . Total Robot Build Rating . | . . Part Schematics Acquired . | . . Parts Built . | . . Authchips . | . . Time . | . . Total Part Build Rating . | . . Part Studies Acquired . | . . Parts Repaired . | . . Time . | . . Parts Recycled . | . . Recycled Matter . | . . Retrieved Matter . | . . Retrieved Components . | . . Parts Scanalyzed . | . . Part Schematics Acquired . | . . Parts Damaged . | . . Bothacking | -11 -10 ------------ Run | Yrd Mat Used RIF Installer . | . . Robots Hacked . | . . Non-combat . | . . Combat . | . . Robot Hacks Applied . | . . Relay Couplers Released . | . . Fabnet Peak Effective % . | . . Robots Rewired . | . . Allies Hacked . | . . Hacks Repelled . | . . Allies | -11 -10 -------- Run | Yrd Mat Total Allies . | . . Largest Group . | . . Highest-Rated Group . | . . Highest-Rated Ally . | . . Total Orders . | . . Ally Attacks . | . . Total Damage . | . . Kills . | . . Allies Corrupted . | . . Allies Melted . | . . Intel | -11 -10 ------- Run | Yrd Mat Active Infowar (turns) . | . . Robot Analysis Total . | . . Derelict Logs Recovered . | . . Drone Launches . | . . Drone Recoveries . | . . Exploration | -11 -10 ------------- Run | Yrd Mat Turns Passed 1155 | 56 1099 Spaces Moved 748 | 58 690 Core 11 | 1 10 Treads . | . . Legs 384 | . 384 Wheels 353 | 57 296 Hover . | . . Flight . | . . Fastest Speed 50 | 50 80 Average Speed 118 | 79 121 Slowest Speed 190 | 80 190 Overloaded Moves . | . . Propulsion Burnouts . | . . Robots Hopped . | . . Potential Cave-ins . | . . Cave-ins Triggered . | . . Exploration Rate (%) 43 | 3 83 Regions Visited 1 Branch Regions . Pre-discovered Areas . | . . Known Exits Taken . | . . Unknown Exits Taken 1 | 1 . Scrap Searched . | . . Spaces Dug . | . . Terrain Destroyed . | . . Melee . | . . Projectile . | . . AOE . | . . Terrain Rammed . | . . Walls Destroyed . | . . Machines Disabled . | . . Actions | -11 -10 --------- Run | Yrd Mat Total 879 | 65 814 Wait 27 | . 27 Move 747 | 57 690 Hop . | . . Pick Up 3 | 2 1 Fast Attach 11 | 5 6 Attach 2 | 1 1 Detach 5 | . 5 Swap 4 | . 4 Drop 1 | . 1 Fire 76 | . 76 Melee . | . . Ram 2 | . 2 Kick 1 | . 1 Crush . | . . Escape Stasis . | . . Rewire . | . . Trap . | . . Miscellaneous . | . . Route ------- -11/Scrapyard -10/Materials (discovered 3 exits: [*Mat x2] / [*Min]) History --------- Turn | Location | Event 34 | -11/Scrapyard | Discovered new exit (range 16) 57 | -11/Scrapyard | Entered Materials 138 | -10/Materials | Discovered new exit (range 13) 243 | -10/Materials | Discovered new exit (range 8) 312 | -10/Materials | Build established: Mutant 649 | -10/Materials | Core integrity fell below 50% 857 | -10/Materials | Derelicts attacked the area 1112 | -10/Materials | Discovered new exit (range 15) 1114 | -10/Materials | Core integrity fell below 20% 1156 | -10/Materials | Destroyed by G-34 Mercenary with Small Laser Last Messages --------------- 01108_ ALERT: Alarm triggered, dispatching investigation squad. 01109_ K-01 Serf collects debris. 01112_ EXIT=FOUND 01112_ Triggered EMP Trap. 01112_ A bubble of electromagnetic force engulfs the area. 01112_ Fusion Modulator explodes. 01112_ EMP Trap short circuited. 01112_ A bubble of electromagnetic force engulfs the area. 01112_ Aluminum Leg destroyed. 01112_ Ion Engine destroyed. 01112_ Pressure Siphon disabled. 01112_ U-05 Engineer destroyed. 01112_ U-05 Engineer lays Concrete. 01113_ K-01 Serf collects debris. 01115_ U-05 Engineer lays Concrete. 01116_ K-01 Serf collects debris. 01117_ U-05 Engineer lays Concrete. Map ----- +----------------------------------------------------+ | # # """ """ """ =#??????????# | | ### / ^"T" """ """ #??????????# | | ??# # """ """ #??????????# ! | | ??# # """ #??????????#########+## | | ??#+###### ! """ #????????####### % | | ??# #??# ########## # """ | | ??# #??# != % # """ | | ??# #??# ################%! # """ | | ??# #??# #??????????????#=!% % %* !# = | | ?# #??# #??????????????# % #####% | # """ | | ?# #??# #?????????????## = ###?### ### """ | | # #### #?????????????# """#??# ### """ | | # #?????????????# "#??# + | | " + #?????????????# !"#??#+########## | | " # #?????????????# < ""#? ??# | | " # ###########??????????# !"## ???# | | ?# #???? #??????????# "## ???# | | ?# ## ? #??????????# """## ????# | | ### ## #??????????## #########?# | | ## #???????????# # #?# ! | | ## """ #???????????# # """ #?# | | #? """ ###########?#= # """ #?# | | ##+####??? """ # #?# # """ #?#####+## | | =#????? # #?# # #????# | | ########+## ### """########### | | """ / + @##" | | """ ####### ## t g % ############# | | """ #?????# ## =##; "#??????????? | | #?????# ## ##"# "#??????????? | | ############# ## ## %"#??????????? | | # | ####+###### " u "#??????????? | | + #????## " ;#??????????? | | # #?????# # ??????? | | # # ###???# " #?? "????? | | ## ## #???### %%% #???? ??????? | | ############# ## ![[[[#?????#^ """ #???????????? | | ########????# ##!![[[[#?????# """ +???????????? | | # #????# #########?????# """ #???????????? | | # ###### #?????????????#^ #???????????? | | # # #?????????????# ? #???????????? | | # # #?????????????# #???????????? | | # "T" + ##+#######?????????# ? #???????????? | | # # # #?????????# ???????????? | | ######## # #?????????? ?####???????????? | | ????# + #?????????? ????????????????? | | ????# # """ #?????????? < ????????????????? | | ????####### """"" #?????????????????????????????? | | ??????????# """"" #?????????????????????????????? | | ??????????# """"" #?????????????????????????????? | | ??????????# """ ???????????????????????????????? | +----------------------------------------------------+ Best States ------------- Heat Dissipation 25 Energy Generation 14 Energy Capacity 250 Matter Stores 254 Matter Capacity 300 Sight Range 16 Terrain Scan Density 10 Evasion (%) 55 Salvage Targeting 1 Item Schematics ----------------- None Robot Schematics ------------------ None Fabricated ------------ Nothing Repaired ---------- Nothing Studied --------- None Alien Tech Used ----------------- None Achievements -------------- None Challenges ------------ None Game ------ Seed CompactRingStick Manual? 0 Play Time 00:08:24 Cumulative 53.3 hours Start 2025.12.19 @ 03:06:52 End 2025.12.19 @ 03:12:48 Sessions 1 Manual Loads 0 Difficulty Rogue Special Mode None Game No. 206 Rogue 206 Adventurer 0 Explorer 0 Win Type - Total 0 Types 0/0/0/0/0/0/0/0/0/0 Lore% 12 Gallery% 38 Achievement% 25 Wizard Run 0 Options --------- Layout 1 ASCII 0 Keyboard 1 Movement Vi Keybinds 0 Fullscreen 1 Font 16/SmallcapsGlow Map View 55x38 Zoom Use 0% Tactical HUD 1 Map Filters NONE Filters NONE Steam X RUN: ba31c297-c420-4f98-adda-8fbcb87a43b6